bitfinex-derivatives/quotes_ETHF0:USTF0_20260125
["timestamp","ask_amount","ask_price","bid_price","bid_amount"]
[1769314986175,4.1988347,2943.8,2942.9,0.5715925]
[1769314986374,0.78500671,2944.0,2942.9,0.5715925]
[1769314986578,4.19877248,2943.9,2942.9,0.5715925]
[1769314986874,4.19877248,2943.8,2942.9,0.5715925]
[1769314987074,0.78500671,2944.0,2942.9,0.5715925]
[1769314987272,4.19877305,2943.9,2942.9,0.5715925]
[1769314987471,4.19877305,2943.8,2942.9,0.5715925]
[1769314987671,0.78500671,2944.0,2942.9,0.5715925]
[1769314987873,4.19863717,2943.9,2942.9,0.5715925]
[1769314988067,4.19863717,2943.8,2942.9,0.5715925]
[1769314988265,0.78500671,2944.0,2942.9,0.5715925]
[1769314988470,4.19852806,2943.9,2942.9,0.5715925]
[1769314988772,4.19852806,2943.8,2942.9,0.5715925]
[1769314988965,0.78500671,2944.0,2942.9,0.5715925]
[1769314989172,4.1985278,2943.9,2943.0,0.60159697]
[1769314989475,0.78500671,2944.2,2943.0,0.60159697]
[1769314989675,4.19775209,2944.1,2943.0,0.60159697]
[1769314989871,4.19775209,2944.0,2943.0,0.60159697]
[1769314990072,4.19775209,2943.9,2943.0,0.60159697]
[1769314990273,0.78500671,2944.2,2943.0,0.60159697]
[1769314990577,4.19776387,2944.1,2943.0,0.60159697]
[1769314990777,4.19776387,2944.0,2943.0,0.60159697]
[1769314990976,4.19776387,2943.9,2943.0,0.60159697]
[1769314991176,0.78500671,2944.2,2943.0,0.60159697]
[1769314991478,4.19778566,2944.1,2943.0,0.60159697]
[1769314991678,4.19778566,2944.0,2943.0,0.60159697]
[1769314991975,4.19778566,2943.9,2943.0,0.60159697]
[1769314992279,0.78500671,2944.2,2943.0,0.60159697]
[1769314992478,4.19779798,2944.1,2943.0,0.60159697]
[1769314992677,4.19779798,2944.0,2943.0,0.60159697]
[1769314992879,4.19779798,2943.9,2943.0,0.60159697]
[1769314993076,0.78500671,2944.2,2943.0,0.60159697]
[1769314993276,4.19779757,2944.1,2943.0,0.60159697]
[1769314993477,4.19779757,2944.0,2943.0,0.60159697]
[1769314993778,4.19779757,2943.9,2943.0,0.60159697]
[1769314993973,0.78500671,2944.2,2943.0,0.60159697]
[1769314994177,4.19782158,2944.1,2943.0,0.60159697]
[1769314994372,4.19782158,2944.0,2943.0,0.60159697]
[1769314994577,4.19782158,2943.9,2943.0,0.60159697]
[1769314994777,0.78500671,2944.2,2943.0,0.60159697]
[1769314994977,4.19784809,2944.1,2943.0,0.60159697]
[1769314995172,4.19784809,2944.0,2943.0,0.60159697]
[1769314995379,4.19784809,2943.9,2943.0,0.60159697]
[1769314995574,0.78500671,2944.2,2943.0,0.60159697]
[1769314995774,4.1978788,2944.1,2943.0,0.60159697]
[1769314995978,4.1978788,2944.0,2943.0,0.60159697]
[1769314996177,4.1978788,2943.9,2943.0,0.60159697]
[1769314996378,0.78500671,2944.2,2943.0,0.60159697]
[1769314996582,4.19791361,2944.1,2943.0,0.60159697]
[1769314996880,4.19791361,2944.0,2943.0,0.60159697]
[1769314997179,4.19791361,2943.9,2943.0,0.60159697]
[1769314997382,0.78500671,2944.2,2943.0,0.60159697]
[1769314997580,4.19795074,2944.1,2943.0,0.60159697]
[1769314997879,4.19795074,2944.0,2943.0,0.60159697]
[1769314998081,4.19795074,2943.9,2943.0,0.60159697]
[1769314998273,0.78500671,2944.2,2943.0,0.60159697]
[1769314998474,4.19799314,2944.1,2943.0,0.60159697]
[1769314998674,4.19799314,2944.0,2943.0,0.60159697]
[1769314998883,4.19799314,2943.9,2943.0,0.60159697]
[1769314999072,0.78500671,2944.2,2943.0,0.60159697]
[1769314999276,4.19799314,2944.1,2943.0,0.60159697]
[1769314999484,4.19799314,2944.0,2943.0,0.60159697]
[1769314999783,4.19799314,2943.9,2943.0,0.60159697]
[1769314999978,0.78500671,2944.2,2943.0,0.60159697]
[1769315000179,4.19804051,2944.1,2943.0,0.60159697]
[1769315000379,4.19804051,2944.0,2943.0,0.60159697]
[1769315000586,4.19804051,2943.9,2943.0,0.60159697]
[1769315000776,0.78500671,2944.2,2943.0,0.60159697]
[1769315000977,4.19809304,2944.1,2943.0,0.60159697]
[1769315001178,4.19809304,2944.0,2943.0,0.60159697]
[1769315001381,4.19809304,2943.9,2943.0,0.60159697]
[1769315001681,0.78500671,2944.2,2943.0,0.60159697]
[1769315001883,4.1981527,2944.1,2943.0,0.60159697]
[1769315002081,4.1981527,2944.0,2943.0,0.60159697]
[1769315002280,4.1981527,2943.9,2943.0,0.60159697]
[1769315002481,0.78500671,2944.2,2943.0,0.60159697]
[1769315002681,4.19837885,2944.1,2943.0,0.60159697]
[1769315002885,4.19837885,2944.0,2943.0,0.60159697]
[1769315003182,4.19837885,2943.9,2943.0,0.60159697]
[1769315003376,4.19837885,2943.8,2943.0,0.60159697]
[1769315003584,0.78500671,2944.2,2943.0,0.60159697]
[1769315003883,4.19840099,2944.1,2943.0,0.60159697]
[1769315004082,4.19840099,2944.0,2943.0,0.60159697]
[1769315004376,4.19840099,2943.9,2943.0,0.60159697]
[1769315004581,4.19840099,2943.8,2943.0,0.60159697]
[1769315004778,0.78500671,2944.2,2943.0,0.60159697]
[1769315004982,4.19843819,2944.1,2943.0,0.60159697]
[1769315005280,4.19843819,2944.0,2943.0,0.60159697]
[1769315005480,4.19843819,2943.9,2943.0,0.60159697]
[1769315005680,4.19843819,2943.8,2943.0,0.60159697]
[1769315005980,0.78500671,2944.2,2943.0,0.60159697]
[1769315006181,4.19846504,2944.1,2943.0,0.60159697]
[1769315006491,4.19846504,2944.0,2943.0,0.60159697]
[1769315006785,4.19846504,2943.9,2943.0,0.60159697]
[1769315006986,4.19846504,2943.8,2943.0,0.60159697]
[1769315007180,0.78500671,2944.2,2943.0,0.60159697]
[1769315007378,4.19847018,2944.1,2943.0,0.60159697]
[1769315007582,4.19847018,2944.0,2943.0,0.60159697]
[1769315007783,4.19847018,2943.9,2943.0,0.60159697]
[1769315008082,4.19847018,2943.8,2943.0,0.60159697]
[1769315008285,0.78500671,2944.2,2943.0,0.60159697]
[1769315008585,4.1983921,2944.1,2943.0,0.60159697]
[1769315008785,4.1983921,2944.0,2943.0,0.60159697]
[1769315009086,4.1983921,2943.9,2943.0,0.60159697]
[1769315009286,4.1983921,2943.8,2943.0,0.60159697]
[1769315009482,0.78500671,2944.2,2943.0,0.60159697]
[1769315009685,4.19824966,2944.1,2943.0,0.60159697]
[1769315009883,4.19824966,2944.0,2943.0,0.60159697]
[1769315010083,4.19824966,2943.9,2943.0,0.60159697]
[1769315010279,4.19824966,2943.8,2943.0,0.60159697]
[1769315010476,0.78500671,2944.2,2943.0,0.60159697]
[1769315010680,4.1981508,2944.1,2943.0,0.60159697]
[1769315010880,4.1981508,2944.0,2943.0,0.60159697]
[1769315011080,4.1981508,2943.9,2943.0,0.60159697]
[1769315011280,4.1981508,2943.8,2943.0,0.60159697]
[1769315011486,0.78500671,2944.2,2943.0,0.60159697]
[1769315011687,4.19803774,2944.1,2943.0,0.60159697]
[1769315011990,4.19803774,2944.0,2943.0,0.60159697]
[1769315012286,4.19803774,2943.9,2943.0,0.60159697]
[1769315012588,4.19803774,2943.8,2943.0,0.60159697]
[1769315012788,0.78500671,2944.2,2943.0,0.60159697]
[1769315012989,4.19793846,2944.1,2943.0,0.60159697]
[1769315013190,4.19793846,2944.0,2943.0,0.60159697]
[1769315013389,4.19793846,2943.9,2943.0,0.60159697]
[1769315013688,4.19793846,2943.8,2943.0,0.60159697]
[1769315013888,0.78500671,2944.2,2943.0,0.60159697]
[1769315014088,4.19785194,2944.1,2943.0,0.60159697]
[1769315014282,4.19785194,2944.0,2943.0,0.60159697]
[1769315014482,4.19785194,2943.9,2943.0,0.60159697]
[1769315014684,4.19785194,2943.8,2943.0,0.60159697]
[1769315014888,4.19785194,2943.7,2943.0,0.60159697]
[1769315015194,0.0026759,2943.7,2943.0,0.60159697]
[1769315041909,4.19781497,2943.6,2943.0,0.60159697]
[1769315042114,0.0026759,2943.7,2943.0,0.60159697]
[1769315042303,4.19776959,2943.6,2943.0,0.60159697]
[1769315042508,0.0026759,2943.7,2943.0,0.60159697]
[1769315042720,4.19780802,2943.6,2943.0,0.60159697]
[1769315042920,0.0026759,2943.7,2943.0,0.60159697]
[1769315043222,4.19780803,2943.6,2943.0,0.60159697]
[1769315043419,0.0026759,2943.7,2943.0,0.60159697]
[1769315043622,4.1976381,2943.6,2943.0,0.60159697]
[1769315043817,0.0026759,2943.7,2942.9,0.00374375]
[1769315044023,4.19765599,2943.6,2942.9,0.00374375]
[1769315049727,4.19765599,2943.6,2942.6,0.61875362]
[1769315050730,4.19765599,2943.6,2942.6,0.62260698]
[1769315053029,4.19765599,2943.6,2942.6,0.00385336]
[1769315054629,4.36777599,2943.6,2942.2,0.61384983]
[1769315054828,4.19765599,2943.5,2942.2,0.61384983]
[1769315055029,4.19765599,2943.4,2942.2,0.61384983]
[1769315055223,4.19765599,2943.3,2942.2,0.61384983]
[1769315055423,4.19765599,2943.2,2942.2,0.61384983]
[1769315055631,0.17012,2943.6,2942.2,0.61767043]
[1769315055931,4.19055854,2943.5,2942.2,0.61767043]
[1769315056226,4.19055854,2943.4,2942.2,0.61767043]
[1769315056427,4.19055854,2943.3,2942.2,0.61767043]
[1769315056621,4.19055854,2943.2,2942.2,0.61767043]
[1769315056823,0.17012,2943.6,2942.2,0.61767043]
[1769315056824,4.19055854,2943.1,2942.2,0.61767043]
[1769315057024,0.17012,2943.6,2942.2,0.61767043]
[1769315057331,4.18961502,2943.5,2942.2,0.61767043]
[1769315057530,4.18961502,2943.4,2942.2,0.61767043]
[1769315057723,4.18961502,2943.3,2942.2,0.61767043]
[1769315058024,4.18961502,2943.2,2942.2,0.61767043]
[1769315058329,4.18961502,2943.1,2942.2,0.61767043]
[1769315058530,0.17012,2943.6,2942.2,0.61767043]
[1769315058726,4.18751577,2943.5,2942.2,0.61767043]
[1769315058927,4.18751577,2943.4,2942.2,0.61767043]
[1769315059129,4.18751577,2943.3,2942.2,0.61767043]
[1769315059335,4.18751577,2943.2,2942.2,0.61767043]
[1769315059626,4.18751577,2943.1,2942.2,0.61767043]
[1769315059829,0.17012,2943.6,2942.2,0.61767043]
[1769315060133,4.18688526,2943.5,2942.2,0.61767043]
[1769315060428,4.18688526,2943.4,2942.2,0.61767043]
[1769315060628,4.18688526,2943.3,2942.2,0.61767043]
[1769315060829,4.18688526,2943.2,2942.2,0.61767043]
[1769315061031,4.18688526,2943.1,2942.2,0.61767043]
[1769315061326,0.46300336,2943.6,2942.2,0.61767043]
[1769315061527,4.18608178,2943.5,2942.2,0.61767043]
[1769315061727,4.18608178,2943.4,2942.2,0.61767043]
[1769315061925,4.18608178,2943.3,2942.2,0.61767043]
[1769315062134,4.18608178,2943.2,2942.2,0.61767043]
[1769315062430,4.18608178,2943.1,2942.2,0.61767043]
[1769315062632,0.17012,2943.5,2942.2,0.61767043]
[1769315062832,4.18567642,2943.4,2942.2,0.61767043]
[1769315063032,4.18567642,2943.3,2942.2,0.61767043]
[1769315063235,4.18567642,2943.2,2942.2,0.61767043]
[1769315063432,4.18567642,2943.1,2942.2,0.61767043]
[1769315063733,0.17012,2943.5,2942.2,0.61767043]
[1769315063933,4.1852412,2943.4,2942.2,0.61767043]
[1769315064126,4.1852412,2943.3,2942.2,0.61767043]
[1769315064328,4.1852412,2943.2,2942.2,0.61767043]
[1769315064630,0.17012,2943.5,2942.2,0.61767043]
[1769315064631,4.1852412,2943.1,2942.2,0.61767043]
[1769315064933,0.17012,2943.5,2942.2,0.61767043]
[1769315065136,0.78518282,2943.3,2942.2,0.61767043]
[1769315065330,4.18507115,2943.2,2942.2,0.61767043]
[1769315065535,4.18507115,2943.1,2942.2,0.61767043]
[1769315065736,4.18507115,2943.0,2942.2,0.61767043]
[1769315065937,0.78518282,2943.3,2942.2,0.61767043]
[1769315066136,4.18482048,2943.2,2942.2,0.61767043]
[1769315066339,4.18482048,2943.1,2942.2,0.61767043]
[1769315066532,4.18482048,2943.0,2942.2,0.61767043]
[1769315066727,0.17012,2943.5,2942.2,0.61767043]
[1769315066933,4.18493001,2943.4,2942.2,0.61767043]
[1769315067135,4.18493001,2943.3,2942.2,0.61767043]
[1769315067336,4.18493001,2943.2,2942.2,0.61767043]
[1769315067541,4.18493001,2943.1,2942.2,0.61767043]
[1769315067735,0.17012,2943.5,2942.2,0.61767043]
[1769315067933,4.18519679,2943.4,2942.2,0.61767043]
[1769315068128,4.18519679,2943.3,2942.2,0.61767043]
[1769315068334,4.18519679,2943.2,2942.2,0.61767043]
[1769315068535,4.18519679,2943.1,2942.2,0.61767043]
[1769315068737,0.17012,2943.5,2942.2,0.61767043]
[1769315068937,4.18543981,2943.4,2942.2,0.61767043]
[1769315069138,4.18543981,2943.3,2942.2,0.61767043]
[1769315069339,4.18543981,2943.2,2942.2,0.61767043]
[1769315069538,4.18543981,2943.1,2942.2,0.61767043]
[1769315069739,0.17012,2943.5,2942.2,0.61767043]
[1769315069942,4.18601591,2943.4,2942.2,0.61767043]
[1769315070243,4.18601591,2943.3,2942.2,0.61767043]
[1769315070442,4.18601591,2943.2,2942.2,0.61767043]
[1769315070740,4.18601591,2943.1,2942.2,0.61767043]
[1769315070942,0.17012,2943.5,2942.2,0.61767043]
[1769315071138,4.18628815,2943.4,2942.2,0.61767043]
[1769315071338,4.18628815,2943.3,2942.2,0.61767043]
[1769315071539,4.18628815,2943.2,2942.2,0.61767043]
[1769315071737,4.18628815,2943.1,2942.2,0.61767043]
[1769315072040,0.17012,2943.5,2942.2,0.61767043]
[1769315072242,4.1865848,2943.4,2942.2,0.61767043]
[1769315072449,4.1865848,2943.3,2942.2,0.61767043]
[1769315072637,4.1865848,2943.2,2942.2,0.61767043]
[1769315072942,4.1865848,2943.1,2942.2,0.61767043]
[1769315073143,4.1876609,2943.0,2942.2,0.61767043]
[1769315073343,0.17012,2943.5,2942.2,0.61767043]
[1769315073542,4.18754253,2943.4,2942.2,0.61767043]
[1769315073840,4.18754253,2943.3,2942.2,0.61767043]
[1769315074036,4.18754253,2943.2,2942.2,0.61767043]
[1769315074242,4.18754253,2943.1,2942.2,0.61767043]
[1769315074443,4.18754253,2943.0,2942.2,0.61767043]
[1769315074644,0.17012,2943.5,2942.2,0.61767043]
[1769315074840,4.18738445,2943.4,2942.2,0.61767043]
[1769315075040,4.18738445,2943.3,2942.2,0.61767043]
[1769315075343,4.18738445,2943.2,2942.2,0.61767043]
[1769315075538,4.18738445,2943.1,2942.2,0.61767043]
[1769315075738,4.18738445,2943.0,2942.2,0.61767043]
[1769315075937,0.17012,2943.5,2942.2,0.61767043]
[1769315076139,4.18782588,2943.4,2942.2,0.61767043]
[1769315076337,4.18782588,2943.3,2942.2,0.61767043]
[1769315076540,4.18782588,2943.2,2942.2,0.61767043]
[1769315076742,4.18782588,2943.1,2942.2,0.61767043]
[1769315077044,4.18782588,2943.0,2942.2,0.61767043]
[1769315077245,0.17012,2943.5,2942.2,0.61767043]
[1769315077444,4.188116,2943.4,2942.2,0.61767043]
[1769315077643,4.188116,2943.3,2942.2,0.61767043]
[1769315077840,4.188116,2943.2,2942.2,0.61767043]
[1769315078042,4.188116,2943.1,2942.2,0.61767043]
[1769315078243,4.188116,2943.0,2942.2,0.61767043]
[1769315078443,0.17012,2943.5,2942.2,0.61767043]
[1769315078644,4.18858935,2943.4,2942.2,0.61767043]
[1769315078843,4.18858935,2943.3,2942.2,0.61767043]
[1769315079045,4.18858935,2943.2,2942.2,0.61767043]
[1769315079344,4.18858935,2943.1,2942.2,0.61767043]
[1769315079544,4.18858935,2943.0,2942.2,0.61767043]
[1769315079740,0.17012,2943.5,2942.2,0.61767043]
[1769315079941,4.18969568,2943.4,2942.2,0.61767043]
[1769315080151,4.18969568,2943.3,2942.2,0.61767043]
[1769315080348,4.18969568,2943.2,2942.2,0.61767043]
[1769315080644,4.18969568,2943.1,2942.2,0.61767043]
[1769315080847,4.18969568,2943.0,2942.2,0.61767043]
[1769315081145,4.18969568,2942.9,2942.2,0.61767043]
[1769315081346,0.17012,2943.5,2942.2,0.61767043]
[1769315081645,4.19170091,2943.4,2942.2,0.61767043]
[1769315081845,4.19170091,2943.3,2942.2,0.61767043]
[1769315082144,4.19170091,2943.2,2942.2,0.61767043]
[1769315082346,4.19170091,2943.1,2942.2,0.61767043]
[1769315082545,4.19170091,2943.0,2942.2,0.61767043]
[1769315082746,4.19170091,2942.9,2942.2,0.61767043]
[1769315082946,0.17012,2943.5,2942.2,0.61767043]
[1769315083150,4.19230628,2943.4,2942.2,0.61767043]
[1769315083449,4.19230628,2943.3,2942.2,0.61767043]
[1769315083648,4.19230628,2943.2,2942.2,0.61767043]
[1769315083853,4.19230628,2943.1,2942.2,0.61767043]
[1769315084050,4.19230628,2943.0,2942.2,0.61767043]
[1769315084252,4.19230628,2942.9,2942.2,0.61767043]
[1769315084550,4.19230628,2942.8,2942.2,0.61767043]
[1769315084752,0.17012,2943.5,2942.2,0.61767043]
[1769315084953,4.19331967,2943.4,2942.2,0.61767043]
[1769315085155,4.19331967,2943.3,2942.2,0.61767043]
[1769315085363,4.19331967,2943.2,2942.2,0.61767043]
[1769315085550,4.19331967,2943.1,2942.2,0.61767043]
[1769315085751,4.19331967,2943.0,2942.2,0.61767043]
[1769315085954,4.19331967,2942.9,2942.2,0.61767043]
[1769315086148,4.19331967,2942.8,2942.2,0.61767043]
[1769315086457,0.17012,2943.5,2942.2,0.61767043]
[1769315086655,4.19448454,2943.4,2942.2,0.61767043]
[1769315086854,4.19448454,2943.3,2942.2,0.61767043]
[1769315087057,4.19448454,2943.2,2942.2,0.61767043]
[1769315087258,4.19448454,2943.1,2942.2,0.61767043]
[1769315087453,4.19448454,2943.0,2942.2,0.61767043]
[1769315087653,4.19448454,2942.9,2942.2,0.61767043]
[1769315087855,4.19448454,2942.8,2942.2,0.61767043]
[1769315088055,0.17012,2943.5,2942.2,0.61767043]
[1769315088257,4.19420418,2943.4,2942.2,0.61767043]
[1769315088456,4.19420418,2943.3,2942.2,0.61767043]
[1769315088759,4.19420418,2943.2,2942.2,0.61767043]
[1769315089059,4.19420418,2943.1,2942.2,0.0038206]
[1769315089252,4.19420418,2943.0,2942.2,0.0038206]
[1769315089452,4.19420418,2942.9,2942.2,0.0038206]
[1769315089658,4.19420418,2942.8,2942.2,0.0038206]
[1769315089853,4.19420418,2942.7,2942.2,0.0038206]
[1769315090158,0.29229179,2943.4,2941.7,0.57373288]
[1769315090361,4.19472875,2943.3,2941.7,0.57373288]
[1769315090558,4.36486875,2943.2,2941.7,0.57373288]
[1769315090859,4.19472875,2943.1,2941.7,0.57373288]
[1769315091061,4.19472875,2943.1,2941.7,0.57774883]
[1769315094863,0.78577329,2942.9,2941.7,0.57774883]
[1769315095062,4.19472875,2942.8,2941.7,0.57774883]
[1769315095363,4.19472875,2942.7,2941.7,0.57774883]
[1769315095569,0.78577329,2942.9,2941.7,0.57774883]
[1769315095760,4.19390934,2942.8,2941.7,0.57774883]
[1769315095960,4.19390934,2942.7,2941.7,0.57774883]
[1769315096260,0.78577329,2942.9,2941.7,0.57774883]
[1769315096464,4.19374856,2942.8,2941.7,0.57774883]
[1769315096653,4.19374856,2942.7,2941.7,0.57774883]
[1769315096858,0.78577329,2942.9,2941.7,0.57774883]
[1769315097160,4.1937847,2942.8,2941.7,0.57774883]
[1769315097361,4.97955799,2942.7,2941.7,0.57774883]
[1769315097557,4.1937847,2942.6,2941.7,0.57774883]
[1769315097757,4.1937847,2942.5,2941.7,0.57774883]
[1769315097959,4.1937847,2942.4,2941.7,0.57774883]
[1769315098158,0.78577329,2942.7,2941.7,0.57774883]
[1769315098365,4.19134027,2942.6,2941.7,0.57774883]
[1769315098561,4.19134027,2942.5,2941.7,0.00401595]
[1769315098765,4.19134027,2942.4,2941.7,0.00401595]
[1769315099067,4.19134027,2942.3,2941.7,0.00401595]
[1769315099266,0.78577329,2942.7,2941.7,0.00401595]
[1769315099564,4.18883166,2942.6,2941.7,0.00401595]
[1769315099763,4.18883166,2942.5,2941.7,0.00401595]
[1769315100065,4.18883166,2942.4,2941.7,0.00401595]
[1769315100258,4.18883166,2942.3,2941.7,0.00401595]
[1769315100459,0.78577329,2942.7,2941.7,0.00401595]
[1769315100759,4.18821844,2942.6,2941.7,0.00401595]
[1769315100955,0.78577329,2942.7,2941.7,0.00401595]
[1769315100956,4.18821844,2942.5,2941.7,0.00401595]
[1769315101161,4.18821844,2942.4,2941.7,0.00401595]
[1769315101354,0.78577329,2942.7,2941.7,0.00401595]
[1769315101565,4.18684261,2942.6,2941.7,0.00401595]
[1769315101768,0.78577329,2942.3,2941.7,0.00401595]
[1769315102062,2.16616,2942.9,2941.8,0.57373288]
[1769315102262,0.2930674,2943.2,2941.0,0.78577329]
[1769315102263,4.18704567,2942.8,2942.0,0.57373288]
[1769315102464,4.18704567,2942.7,2942.0,0.57373288]
[1769315102772,0.78577329,2943.1,2942.0,0.57373288]
[1769315102968,4.18701754,2943.0,2942.0,0.57689046]
[1769315103167,4.18701754,2942.9,2942.0,0.57689046]
[1769315103370,4.18701754,2942.8,2942.0,0.57689046]
[1769315103568,4.18701754,2942.7,2942.0,0.57689046]
[1769315103868,0.78577329,2943.1,2942.0,0.57689046]
[1769315104067,4.18686187,2943.0,2942.0,0.57689046]
[1769315104269,4.18686187,2942.9,2942.0,0.57689046]
[1769315104568,4.18686187,2942.8,2942.0,0.57689046]
[1769315104764,4.18686187,2942.7,2942.0,0.57689046]
[1769315104962,0.78577329,2943.1,2942.0,0.57689046]
[1769315105162,4.18707096,2943.0,2942.0,0.57689046]
[1769315105367,4.18707096,2942.9,2942.0,0.57689046]
[1769315105562,4.18707096,2942.8,2942.0,0.57689046]
[1769315105763,0.78577329,2943.1,2942.0,0.57689046]
[1769315105964,4.18716912,2943.0,2942.0,0.57689046]
[1769315106266,4.18716912,2942.9,2942.0,0.57689046]
[1769315106562,4.18716912,2942.8,2942.0,0.57689046]
[1769315106764,0.78577329,2943.1,2942.0,0.57689046]
[1769315106963,4.18728559,2943.0,2942.0,0.57689046]
[1769315107159,4.18728559,2942.9,2942.0,0.57689046]
[1769315107464,4.18728559,2942.8,2942.0,0.57689046]
[1769315107762,0.78577329,2943.1,2942.0,0.57689046]
[1769315107966,0.78577329,2942.6,2941.5,0.59433633]
[1769315108166,0.78577329,2942.8,2941.5,0.59433633]
[1769315108365,4.18677038,2942.7,2941.5,0.59433633]
[1769315108567,0.78577329,2942.8,2941.5,0.59433633]
[1769315108872,4.18635268,2942.7,2941.5,0.59433633]
[1769315109073,0.78577329,2942.8,2941.5,0.59674752]
[1769315109371,4.18587528,2942.7,2941.5,0.59674752]
[1769315109571,0.78577329,2942.8,2941.5,0.59674752]
[1769315109774,4.18621323,2942.7,2941.5,0.59674752]
[1769315109975,0.78577329,2942.8,2941.5,0.59674752]
[1769315110273,4.18620953,2942.7,2941.5,0.59674752]
[1769315110479,0.78577329,2942.8,2941.5,0.59674752]
[1769315110678,4.1862698,2942.7,2941.5,0.59674752]
[1769315110873,0.78577329,2942.8,2941.5,0.59674752]
[1769315111073,4.18626941,2942.7,2941.5,0.59674752]
[1769315111379,0.78577329,2942.8,2941.5,0.59674752]
[1769315111573,4.18637326,2942.7,2941.5,0.59674752]
[1769315111775,0.78577329,2942.8,2941.5,0.59674752]
[1769315111977,4.18636245,2942.7,2941.5,0.59674752]
[1769315112177,0.78577329,2942.8,2941.5,0.59674752]
[1769315112378,4.1864955,2942.7,2941.5,0.59674752]
[1769315112578,0.78577329,2942.8,2941.5,0.59674752]
[1769315112779,4.18649286,2942.7,2941.5,0.59674752]
[1769315112980,0.78577329,2942.8,2941.5,0.59674752]
[1769315113174,4.18649286,2942.7,2941.5,0.59674752]
[1769315113369,0.78577329,2942.8,2941.5,0.59674752]
[1769315113573,4.18661625,2942.7,2941.5,0.59674752]
[1769315113774,0.78577329,2942.8,2941.5,0.59674752]
[1769315114076,4.18661625,2942.7,2941.5,0.59674752]
[1769315114383,0.78577329,2942.8,2941.5,0.59674752]
[1769315114573,4.18677409,2942.7,2941.5,0.59674752]
[1769315114773,0.78577329,2942.8,2941.5,0.59674752]
[1769315114970,4.18677366,2942.7,2941.5,0.59674752]
[1769315115172,0.78577329,2942.8,2941.5,0.59674752]
[1769315115374,4.18696858,2942.7,2941.5,0.59674752]
[1769315115576,4.18696858,2942.6,2941.5,0.59674752]
[1769315115774,0.78577329,2942.8,2941.5,0.59674752]
[1769315115986,4.18696771,2942.7,2941.5,0.59674752]
[1769315116186,4.18719559,2942.6,2941.5,0.59674752]
[1769315116480,0.78577329,2942.8,2941.5,0.59674752]
[1769315116681,4.18719549,2942.7,2941.5,0.59674752]
[1769315116881,4.18719549,2942.6,2941.5,0.59674752]
[1769315117082,0.78577329,2942.8,2941.5,0.59674752]
[1769315117281,4.18733633,2942.7,2941.5,0.59674752]
[1769315117481,4.18733633,2942.6,2941.5,0.59674752]
[1769315117783,0.78577329,2942.8,2941.5,0.59674752]
[1769315117983,4.1873286,2942.7,2941.5,0.59674752]
[1769315118177,4.1873286,2942.6,2941.5,0.59674752]
[1769315118379,0.78577329,2942.8,2941.5,0.59674752]
[1769315118582,4.18760638,2942.7,2941.5,0.59674752]
[1769315118782,4.18760638,2942.6,2941.5,0.59674752]
[1769315118983,0.78577329,2942.8,2941.5,0.59674752]
[1769315119185,4.18760638,2942.7,2941.5,0.59674752]
[1769315119384,4.18760638,2942.6,2941.5,0.59674752]
[1769315119586,0.78577329,2942.8,2941.5,0.59674752]
[1769315119789,4.18775432,2942.7,2941.5,0.59674752]
[1769315120082,4.18775432,2942.6,2941.5,0.59674752]
[1769315120282,0.78577329,2942.8,2941.5,0.59674752]
[1769315120485,4.18790336,2942.7,2941.5,0.59674752]
[1769315120688,4.18790336,2942.6,2941.5,0.59674752]
[1769315120982,0.78577329,2942.8,2941.5,0.59674752]
[1769315121184,4.18735981,2942.7,2941.5,0.59674752]
[1769315121379,4.18735981,2942.6,2941.5,0.59674752]
[1769315121579,0.78577329,2942.8,2941.5,0.59674752]
[1769315121786,4.18750887,2942.7,2941.5,0.59674752]
[1769315121982,4.18750887,2942.6,2941.5,0.59674752]
[1769315122184,0.78577329,2942.8,2941.5,0.59674752]
[1769315122385,4.18769008,2942.7,2941.5,0.59674752]
[1769315122685,4.18769008,2942.6,2941.5,0.59674752]
[1769315122888,0.78577329,2942.8,2941.5,0.59674752]
[1769315123086,4.1876887,2942.7,2941.5,0.59674752]
[1769315123281,4.1876887,2942.6,2941.5,0.59674752]
[1769315123479,0.78577329,2942.8,2941.5,0.59674752]
[1769315123690,4.18789055,2942.7,2941.5,0.59674752]
[1769315123889,4.18789055,2942.6,2941.5,0.59674752]
[1769315124185,0.78577329,2942.8,2941.5,0.59674752]
[1769315124383,4.18774552,2942.7,2941.5,0.59674752]
[1769315124589,4.18774552,2942.6,2941.5,0.59674752]
[1769315124890,0.78577329,2942.8,2941.5,0.59674752]
[1769315125085,4.18766972,2942.7,2941.5,0.59674752]
[1769315125388,4.18766972,2942.6,2941.5,0.59674752]
[1769315125581,0.78577329,2942.8,2941.5,0.59674752]
[1769315125786,4.18792693,2942.7,2941.5,0.59674752]
[1769315125984,4.18792693,2942.6,2941.5,0.59674752]
[1769315126284,0.78577329,2942.8,2941.5,0.59674752]
[1769315126484,4.18818788,2942.7,2941.5,0.59674752]
[1769315126685,4.18818788,2942.6,2941.5,0.59674752]
[1769315126888,0.78577329,2942.8,2941.5,0.59674752]
[1769315127081,4.18818875,2942.7,2941.5,0.59674752]
[1769315127381,4.18818875,2942.6,2941.5,0.59674752]
[1769315127676,0.78577329,2942.8,2941.5,0.59674752]
[1769315127878,4.18842696,2942.7,2941.5,0.59674752]
[1769315128081,4.18842696,2942.6,2941.5,0.59674752]
[1769315128291,0.78577329,2942.8,2941.5,0.59674752]
[1769315128493,4.18803057,2942.7,2941.5,0.59674752]
[1769315128693,4.18803057,2942.6,2941.5,0.59674752]
[1769315128884,0.78577329,2942.8,2941.5,0.59674752]
[1769315129085,4.18824969,2942.7,2941.5,0.59674752]
[1769315129285,4.18824969,2942.6,2941.5,0.59674752]
[1769315129481,0.78577329,2942.8,2941.5,0.59674752]
[1769315129687,4.18897287,2942.7,2941.5,0.59674752]
[1769315129886,4.18897287,2942.6,2941.5,0.59674752]
[1769315130086,0.78577329,2942.8,2941.5,0.59674752]
[1769315130298,4.18939471,2942.7,2941.5,0.59674752]
[1769315130489,4.18939471,2942.6,2941.5,0.59674752]
[1769315130689,0.78577329,2942.8,2941.5,0.59674752]
[1769315130885,4.19036183,2942.7,2941.5,0.59674752]
[1769315131190,4.19036183,2942.6,2941.5,0.59674752]
[1769315131387,4.19036183,2942.5,2941.5,0.59674752]
[1769315131586,0.78577329,2942.8,2941.5,0.59674752]
[1769315131797,4.19141994,2942.7,2941.5,0.59674752]
[1769315131994,4.19141994,2942.6,2941.5,0.59674752]
[1769315132295,4.19141994,2942.5,2941.5,0.59674752]
[1769315132493,0.78577329,2942.8,2941.5,0.59674752]
[1769315132701,4.19169715,2942.7,2941.5,0.59674752]
[1769315132891,4.19169715,2942.6,2941.5,0.59674752]
[1769315133088,4.19169715,2942.5,2941.5,0.59674752]
[1769315133289,0.78577329,2942.8,2941.5,0.59674752]
[1769315133498,4.19198349,2942.7,2941.5,0.59674752]
[1769315133697,4.19198349,2942.6,2941.5,0.59674752]
[1769315133892,4.19198349,2942.5,2941.5,0.59674752]
[1769315134092,0.78577329,2942.8,2941.5,0.59674752]
[1769315134292,4.19197971,2942.7,2941.5,0.59674752]
[1769315134492,4.19197971,2942.6,2941.5,0.59674752]
[1769315134692,4.19197971,2942.5,2941.5,0.59674752]